[Event "Titled Tuesday Blitz April 25 Early 2023"]
[White "Smiechu"]
[Black "Panesso Rivera, Henry"]
[BlackFideId "4402707"]
[WhiteElo "2405"]
[BlackElo "2345"]
[Result "0-1"]
[Round "03"]
[TimeControl "180+2"]
[Date "2023.04.25"]
[WhiteClock "0:00:02"]
[BlackClock "0:01:39"]

1. e4 {[%clk 0:03:00]}  d6 {[%clk 0:02:59]} 2. d4 {[%clk 0:03:00]}  Nf6 {[%clk 0:03:00]} 3. Nc3 {[%clk 0:03:00]}  g6 {[%clk 0:03:00]} 4. Be3 {[%clk 0:03:00]}  c6 {[%clk 0:03:00]} 5. f3 {[%clk 0:03:01]}  Qa5 {[%clk 0:03:00]} 6. Qd2 {[%clk 0:03:01]}  Nbd7 {[%clk 0:03:00]} 7. h4 {[%clk 0:02:57]}  h6 {[%clk 0:03:01]} 8. Bd3 {[%clk 0:02:55]}  b5 {[%clk 0:03:00]} 9. Nh3 {[%clk 0:02:54]}  Rb8 {[%clk 0:03:00]} 10. g4 {[%clk 0:02:50]}  Qc7 {[%clk 0:02:58]} 11. Qg2 {[%clk 0:02:13]}  Nb6 {[%clk 0:02:53]} 12. g5 {[%clk 0:02:09]}  hxg5 {[%clk 0:02:53]} 13. hxg5 {[%clk 0:02:09]}  Nh5 {[%clk 0:02:53]} 14. Nf4 {[%clk 0:01:54]}  Nxf4 {[%clk 0:02:51]} 15. Bxf4 {[%clk 0:01:55]}  Rxh1+ {[%clk 0:02:51]} 16. Qxh1 {[%clk 0:01:55]}  e5 {[%clk 0:02:49]} 17. dxe5 {[%clk 0:01:49]}  dxe5 {[%clk 0:02:49]} 18. Be3 {[%clk 0:01:49]}  Nc4 {[%clk 0:02:49]} 19. Bxc4 {[%clk 0:01:43]}  bxc4 {[%clk 0:02:50]} 20. Qh8 {[%clk 0:01:42]}  Qa5 {[%clk 0:02:38]} 21. Bd2 {[%clk 0:01:32]}  Qb6 {[%clk 0:02:31]} 22. Qxe5+ {[%clk 0:01:29]}  Be6 {[%clk 0:02:30]} 23. Ke2 {[%clk 0:01:08]}  Rd8 {[%clk 0:02:23]} 24. Rh1 {[%clk 0:00:53]}  Qxb2 {[%clk 0:01:50]} 25. Rh8 {[%clk 0:00:49]}  Qxc2 {[%clk 0:01:42]} 26. Rxf8+ {[%clk 0:00:14]}  Kxf8 {[%clk 0:01:43]} 27. Qh8+ {[%clk 0:00:13]}  Ke7 {[%clk 0:01:43]} 28. Qf6+ {[%clk 0:00:13]}  Ke8 {[%clk 0:01:43]} 29. Qh8+ {[%clk 0:00:13]}  Kd7 {[%clk 0:01:43]} 30. Na4 {[%clk 0:00:02]}  Rxh8 {[%clk 0:01:39]} 0-1


[Site "https://www.chess.com"]

[Event "Titled Tuesday Blitz April 25 Early 2023"]
[White "Liu, Casper"]
[Black "Melikyan, Gnel"]
[WhiteFideId "1454153"]
[BlackFideId "54109990"]
[WhiteElo "2221"]
[BlackElo "2138"]
[Result "0-1"]
[Round "03"]
[TimeControl "180+2"]
[Date "2023.04.25"]
[WhiteClock "0:00:03"]
[BlackClock "0:00:45"]

1. e4 {[%clk 0:02:55]}  c6 {[%clk 0:02:59]} 2. d4 {[%clk 0:02:54]}  d5 {[%clk 0:03:00]} 3. exd5 {[%clk 0:02:55]}  cxd5 {[%clk 0:02:59]} 4. Bd3 {[%clk 0:02:56]}  Nc6 {[%clk 0:03:00]} 5. c3 {[%clk 0:02:56]}  Nf6 {[%clk 0:03:00]} 6. Ne2 {[%clk 0:02:57]}  e5 {[%clk 0:02:59]} 7. dxe5 {[%clk 0:02:57]}  Nxe5 {[%clk 0:03:00]} 8. Bb5+ {[%clk 0:02:57]}  Bd7 {[%clk 0:03:00]} 9. Bxd7+ {[%clk 0:02:58]}  Qxd7 {[%clk 0:03:00]} 10. O-O {[%clk 0:02:58]}  Be7 {[%clk 0:02:59]} 11. Bf4 {[%clk 0:02:58]}  Ng6 {[%clk 0:02:59]} 12. Nd2 {[%clk 0:02:56]}  O-O {[%clk 0:02:58]} 13. Nf3 {[%clk 0:02:56]}  Bd6 {[%clk 0:02:55]} 14. Bxd6 {[%clk 0:02:55]}  Qxd6 {[%clk 0:02:56]} 15. Qd4 {[%clk 0:02:55]}  Rfe8 {[%clk 0:02:54]} 16. Ng3 {[%clk 0:02:55]}  a6 {[%clk 0:02:48]} 17. Rfe1 {[%clk 0:02:53]}  h6 {[%clk 0:02:46]} 18. Nf5 {[%clk 0:02:50]}  Qf4 {[%clk 0:02:42]} 19. Ne3 {[%clk 0:02:39]}  Re4 {[%clk 0:02:33]} 20. Qc5 {[%clk 0:02:13]}  Rae8 {[%clk 0:02:32]} 21. Red1 {[%clk 0:02:13]}  Ne5 {[%clk 0:02:10]} 22. Nd4 {[%clk 0:02:01]}  Neg4 {[%clk 0:01:54]} 23. Nxg4 {[%clk 0:02:01]}  Nxg4 {[%clk 0:01:54]} 24. Nf3 {[%clk 0:02:02]}  Re2 {[%clk 0:01:51]} 25. Rd4 {[%clk 0:01:27]}  R8e4 {[%clk 0:01:23]} 26. Rxd5 {[%clk 0:00:40]}  Rxf2 {[%clk 0:01:08]} 27. Rf5 {[%clk 0:00:30]}  Qb8 {[%clk 0:01:01]} 28. h3 {[%clk 0:00:17]}  Qg3 {[%clk 0:00:49]} 29. Qxf2 {[%clk 0:00:02]}  Qxf2+ {[%clk 0:00:47]} 30. Kh1 {[%clk 0:00:03]}  Ne3 {[%clk 0:00:46]} 31. Rg1 {[%clk 0:00:03]}  Nxf5 {[%clk 0:00:45]} 0-1


[Site "https://www.chess.com"]

[Event "Titled Tuesday Blitz April 25 Early 2023"]
[White "Pacan-Milej, Kosma"]
[Black "Matveeva, Olga"]
[WhiteFideId "21800537"]
[BlackFideId "24107018"]
[WhiteElo "2302"]
[BlackElo "2056"]
[Result "1/2-1/2"]
[Round "03"]
[TimeControl "180+2"]
[Date "2023.04.25"]
[WhiteClock "0:01:54"]
[BlackClock "0:00:15"]

1. d4 {[%clk 0:03:00]}  Nf6 {[%clk 0:02:59]} 2. c4 {[%clk 0:03:01]}  e6 {[%clk 0:02:59]} 3. Nc3 {[%clk 0:03:01]}  Bb4 {[%clk 0:03:00]} 4. e3 {[%clk 0:03:02]}  O-O {[%clk 0:02:59]} 5. Bd3 {[%clk 0:03:02]}  d5 {[%clk 0:02:58]} 6. a3 {[%clk 0:03:03]}  Bxc3+ {[%clk 0:02:52]} 7. bxc3 {[%clk 0:03:04]}  dxc4 {[%clk 0:02:47]} 8. Bxc4 {[%clk 0:03:05]}  b6 {[%clk 0:02:46]} 9. Ne2 {[%clk 0:03:04]}  Bb7 {[%clk 0:02:46]} 10. O-O {[%clk 0:03:04]}  Nbd7 {[%clk 0:02:46]} 11. f3 {[%clk 0:03:05]}  c5 {[%clk 0:02:45]} 12. e4 {[%clk 0:03:05]}  cxd4 {[%clk 0:02:43]} 13. cxd4 {[%clk 0:03:06]}  Rc8 {[%clk 0:02:43]} 14. Bd3 {[%clk 0:03:07]}  e5 {[%clk 0:02:39]} 15. Be3 {[%clk 0:02:57]}  exd4 {[%clk 0:02:37]} 16. Nxd4 {[%clk 0:02:57]}  Nc5 {[%clk 0:02:35]} 17. Be2 {[%clk 0:02:57]}  Re8 {[%clk 0:02:11]} 18. Qe1 {[%clk 0:02:55]}  Nd5 {[%clk 0:02:05]} 19. Bf2 {[%clk 0:02:47]}  Nf4 {[%clk 0:02:01]} 20. Rd1 {[%clk 0:02:37]}  Qg5 {[%clk 0:01:57]} 21. Bg3 {[%clk 0:02:32]}  Rcd8 {[%clk 0:01:40]} 22. Nf5 {[%clk 0:02:27]}  Rxd1 {[%clk 0:01:24]} 23. Qxd1 {[%clk 0:02:26]}  Nxe2+ {[%clk 0:01:22]} 24. Qxe2 {[%clk 0:02:27]}  Qxf5 {[%clk 0:01:21]} 25. exf5 {[%clk 0:02:18]}  Rxe2 {[%clk 0:01:20]} 26. Rd1 {[%clk 0:02:19]}  Re8 {[%clk 0:01:16]} 27. Bd6 {[%clk 0:02:17]}  Bc6 {[%clk 0:01:09]} 28. Rc1 {[%clk 0:02:10]}  Bd7 {[%clk 0:00:59]} 29. Bxc5 {[%clk 0:02:09]}  bxc5 {[%clk 0:00:58]} 30. Rxc5 {[%clk 0:02:09]}  Rc8 {[%clk 0:00:56]} 31. Ra5 {[%clk 0:02:09]}  Rc7 {[%clk 0:00:55]} 32. Kf2 {[%clk 0:02:09]}  f6 {[%clk 0:00:54]} 33. g4 {[%clk 0:02:10]}  Kf7 {[%clk 0:00:54]} 34. Ke3 {[%clk 0:02:09]}  Ke7 {[%clk 0:00:53]} 35. h4 {[%clk 0:02:09]}  h5 {[%clk 0:00:49]} 36. g5 {[%clk 0:02:03]}  fxg5 {[%clk 0:00:43]} 37. hxg5 {[%clk 0:02:04]}  h4 {[%clk 0:00:41]} 38. Kf2 {[%clk 0:02:03]}  Rc2+ {[%clk 0:00:37]} 39. Kg1 {[%clk 0:02:03]}  Rc7 {[%clk 0:00:20]} 40. Kh2 {[%clk 0:02:03]}  Kd6 {[%clk 0:00:18]} 41. Kh3 {[%clk 0:02:01]}  Rc4 {[%clk 0:00:17]} 42. Kg2 {[%clk 0:01:52]}  Ra4 {[%clk 0:00:15]} 43. Rxa4 {[%clk 0:01:48]}  Bxa4 {[%clk 0:00:16]} 44. Kh3 {[%clk 0:01:49]}  Ke5 {[%clk 0:00:16]} 45. f6 {[%clk 0:01:46]}  gxf6 {[%clk 0:00:15]} 46. gxf6 {[%clk 0:01:47]}  Kxf6 {[%clk 0:00:15]} 47. Kxh4 {[%clk 0:01:48]}  Kf5 {[%clk 0:00:15]} 48. Kg3 {[%clk 0:01:47]}  a5 {[%clk 0:00:13]} 49. Kf2 {[%clk 0:01:48]}  Bb3 {[%clk 0:00:13]} 50. Ke2 {[%clk 0:01:49]}  a4 {[%clk 0:00:14]} 51. Kd2 {[%clk 0:01:49]}  Kf4 {[%clk 0:00:14]} 52. Kc3 {[%clk 0:01:50]}  Kxf3 {[%clk 0:00:15]} 53. Kb2 {[%clk 0:01:51]}  Ke2 {[%clk 0:00:15]} 54. Ka1 {[%clk 0:01:52]}  Kd3 {[%clk 0:00:16]} 55. Kb2 {[%clk 0:01:53]}  Kd2 {[%clk 0:00:16]} 56. Ka1 {[%clk 0:01:54]}  Kc2 {[%clk 0:00:15]} 1/2-1/2


[Site "https://www.chess.com"]

[Event "Titled Tuesday Blitz April 25 Early 2023"]
[White "BenchGM"]
[Black "Yelisieiev, Yevhenii"]
[BlackFideId "14139642"]
[WhiteElo "2374"]
[BlackElo "2425"]
[Result "1-0"]
[Round "03"]
[TimeControl "180+2"]
[Date "2023.04.25"]
[WhiteClock "0:00:06"]
[BlackClock "0:00:04"]

1. d4 {[%clk 0:03:00]}  d6 {[%clk 0:02:57]} 2. c4 {[%clk 0:03:00]}  e5 {[%clk 0:02:57]} 3. Nc3 {[%clk 0:02:59]}  exd4 {[%clk 0:02:57]} 4. Qxd4 {[%clk 0:03:00]}  Nc6 {[%clk 0:02:57]} 5. Qd2 {[%clk 0:02:59]}  g6 {[%clk 0:02:57]} 6. e4 {[%clk 0:02:55]}  Bg7 {[%clk 0:02:58]} 7. g3 {[%clk 0:02:55]}  Nge7 {[%clk 0:02:57]} 8. Bg2 {[%clk 0:02:55]}  Be6 {[%clk 0:02:40]} 9. b3 {[%clk 0:02:52]}  O-O {[%clk 0:02:27]} 10. Bb2 {[%clk 0:02:49]}  f5 {[%clk 0:02:24]} 11. Nge2 {[%clk 0:02:48]}  Bf7 {[%clk 0:01:55]} 12. O-O {[%clk 0:02:45]}  Qd7 {[%clk 0:01:52]} 13. Nf4 {[%clk 0:02:41]}  Rae8 {[%clk 0:01:51]} 14. Rfe1 {[%clk 0:02:39]}  Nd4 {[%clk 0:01:48]} 15. Ncd5 {[%clk 0:02:29]}  c5 {[%clk 0:01:39]} 16. Ne2 {[%clk 0:02:21]}  Nec6 {[%clk 0:01:35]} 17. Nxd4 {[%clk 0:02:19]}  Nxd4 {[%clk 0:01:32]} 18. exf5 {[%clk 0:02:11]}  Qxf5 {[%clk 0:01:25]} 19. Ne7+ {[%clk 0:01:45]}  Rxe7 {[%clk 0:01:24]} 20. Rxe7 {[%clk 0:01:46]}  Be8 {[%clk 0:01:03]} 21. Rxb7 {[%clk 0:01:35]}  Be5 {[%clk 0:00:44]} 22. f4 {[%clk 0:01:23]}  Bf6 {[%clk 0:00:35]} 23. Re1 {[%clk 0:01:20]}  a5 {[%clk 0:00:20]} 24. Rb8 {[%clk 0:01:04]}  Bf7 {[%clk 0:00:18]} 25. Rxf8+ {[%clk 0:01:04]}  Kxf8 {[%clk 0:00:19]} 26. Be4 {[%clk 0:00:45]}  Qg4 {[%clk 0:00:15]} 27. Kg2 {[%clk 0:00:38]}  h5 {[%clk 0:00:14]} 28. Bxd4 {[%clk 0:00:32]}  Bxd4 {[%clk 0:00:13]} 29. Bf3 {[%clk 0:00:32]}  Qf5 {[%clk 0:00:13]} 30. Qxa5 {[%clk 0:00:32]}  Qc2+ {[%clk 0:00:12]} 31. Re2 {[%clk 0:00:32]}  Qb1 {[%clk 0:00:09]} 32. Qe1 {[%clk 0:00:21]}  Qf5 {[%clk 0:00:07]} 33. a4 {[%clk 0:00:16]}  h4 {[%clk 0:00:07]} 34. a5 {[%clk 0:00:15]}  h3+ {[%clk 0:00:07]} 35. Kh1 {[%clk 0:00:15]}  Qd3 {[%clk 0:00:07]} 36. Be4 {[%clk 0:00:11]}  Qxb3 {[%clk 0:00:07]} 37. a6 {[%clk 0:00:10]}  Qa4 {[%clk 0:00:07]} 38. Qb1 {[%clk 0:00:07]}  Qxa6 {[%clk 0:00:06]} 39. Bxg6 {[%clk 0:00:07]}  Bxc4 {[%clk 0:00:04]} 40. Qf5+ {[%clk 0:00:06]} 1-0


[Site "https://www.chess.com"]

[Event "Titled Tuesday Blitz April 25 Early 2023"]
[White "Jain Kashish Manoj"]
[Black "Hoffmann, Asa"]
[WhiteFideId "35081098"]
[BlackFideId "2001470"]
[WhiteElo "2191"]
[BlackElo "2117"]
[Result "0-1"]
[Round "03"]
[TimeControl "180+2"]
[Date "2023.04.25"]
[WhiteClock "0:00:05"]
[BlackClock "0:00:33"]

1. e4 {[%clk 0:03:00]}  d6 {[%clk 0:02:56]} 2. d4 {[%clk 0:03:00]}  Nf6 {[%clk 0:02:55]} 3. Nc3 {[%clk 0:03:00]}  c6 {[%clk 0:02:55]} 4. a4 {[%clk 0:03:00]}  Qa5 {[%clk 0:02:54]} 5. Bd3 {[%clk 0:02:37]}  e5 {[%clk 0:02:53]} 6. Nf3 {[%clk 0:02:27]}  Bg4 {[%clk 0:02:52]} 7. dxe5 {[%clk 0:02:26]}  dxe5 {[%clk 0:02:51]} 8. O-O {[%clk 0:02:22]}  Nbd7 {[%clk 0:02:51]} 9. h3 {[%clk 0:02:22]}  Bh5 {[%clk 0:02:51]} 10. Bd2 {[%clk 0:02:16]}  Bb4 {[%clk 0:02:48]} 11. Nb1 {[%clk 0:02:16]}  Bxd2 {[%clk 0:02:47]} 12. Nbxd2 {[%clk 0:02:17]}  O-O-O {[%clk 0:02:43]} 13. Nc4 {[%clk 0:02:10]}  Qc7 {[%clk 0:02:42]} 14. Qe2 {[%clk 0:02:06]}  Nc5 {[%clk 0:02:41]} 15. Qe3 {[%clk 0:01:51]}  Nxd3 {[%clk 0:02:20]} 16. cxd3 {[%clk 0:01:52]}  Bxf3 {[%clk 0:02:19]} 17. Qxf3 {[%clk 0:01:53]}  Rd4 {[%clk 0:02:10]} 18. Rfc1 {[%clk 0:01:50]}  Rhd8 {[%clk 0:02:06]} 19. Ra3 {[%clk 0:01:50]}  Kb8 {[%clk 0:01:58]} 20. Qg3 {[%clk 0:01:37]}  Nh5 {[%clk 0:01:47]} 21. Qxe5 {[%clk 0:00:21]}  Nf4 {[%clk 0:01:46]} 22. Qxc7+ {[%clk 0:00:08]}  Kxc7 {[%clk 0:01:46]} 23. Rc2 {[%clk 0:00:09]}  Rxd3 {[%clk 0:01:37]} 24. Rxd3 {[%clk 0:00:09]}  Rxd3 {[%clk 0:01:36]} 25. Kh2 {[%clk 0:00:08]}  f6 {[%clk 0:01:31]} 26. g3 {[%clk 0:00:08]}  Ne6 {[%clk 0:01:29]} 27. Ne3 {[%clk 0:00:08]}  Nd4 {[%clk 0:01:23]} 28. Rc4 {[%clk 0:00:07]}  a5 {[%clk 0:01:17]} 29. Kg2 {[%clk 0:00:07]}  g6 {[%clk 0:01:09]} 30. Nd5+ {[%clk 0:00:07]}  Kd6 {[%clk 0:01:05]} 31. Nxf6 {[%clk 0:00:07]}  b5 {[%clk 0:01:00]} 32. axb5 {[%clk 0:00:05]}  cxb5 {[%clk 0:00:59]} 33. Rc8 {[%clk 0:00:04]}  Ne6 {[%clk 0:00:54]} 34. Nxh7 {[%clk 0:00:03]}  Rb3 {[%clk 0:00:53]} 35. e5+ {[%clk 0:00:02]}  Kxe5 {[%clk 0:00:51]} 36. Rc2 {[%clk 0:00:03]}  b4 {[%clk 0:00:50]} 37. Re2+ {[%clk 0:00:03]}  Kd6 {[%clk 0:00:49]} 38. Nf6 {[%clk 0:00:03]}  Nc5 {[%clk 0:00:47]} 39. Rc2 {[%clk 0:00:02]}  a4 {[%clk 0:00:45]} 40. Rd2+ {[%clk 0:00:03]}  Kc6 {[%clk 0:00:44]} 41. Nd5 {[%clk 0:00:02]}  a3 {[%clk 0:00:43]} 42. bxa3 {[%clk 0:00:03]}  bxa3 {[%clk 0:00:43]} 43. Ne7+ {[%clk 0:00:04]}  Kb5 {[%clk 0:00:43]} 44. Nxg6 {[%clk 0:00:05]}  Rb2 {[%clk 0:00:42]} 45. Rd1 {[%clk 0:00:05]}  a2 {[%clk 0:00:42]} 46. Ra1 {[%clk 0:00:04]}  Nb3 {[%clk 0:00:41]} 47. Rxa2 {[%clk 0:00:05]}  Rxa2 {[%clk 0:00:41]} 48. h4 {[%clk 0:00:06]}  Nd4 {[%clk 0:00:41]} 49. h5 {[%clk 0:00:06]}  Ra6 {[%clk 0:00:39]} 50. g4 {[%clk 0:00:05]}  Ne6 {[%clk 0:00:39]} 51. Kg3 {[%clk 0:00:05]}  Kc5 {[%clk 0:00:38]} 52. f4 {[%clk 0:00:06]}  Kd5 {[%clk 0:00:39]} 53. g5 {[%clk 0:00:06]}  Ke4 {[%clk 0:00:37]} 54. Kg4 {[%clk 0:00:05]}  Ra1 {[%clk 0:00:35]} 55. h6 {[%clk 0:00:05]}  Rg1+ {[%clk 0:00:35]} 56. Kh3 {[%clk 0:00:05]}  Nxf4+ {[%clk 0:00:34]} 57. Nxf4 {[%clk 0:00:04]}  Kxf4 {[%clk 0:00:34]} 58. Kh2 {[%clk 0:00:04]}  Rxg5 {[%clk 0:00:33]} 59. h7 {[%clk 0:00:05]} 0-1


[Site "https://www.chess.com"]

[Event "Titled Tuesday Blitz April 25 Early 2023"]
[White "Juhasz, Agoston"]
[Black "Stalri"]
[WhiteFideId "778346"]
[WhiteElo "2211"]
[BlackElo "2341"]
[Result "1-0"]
[Round "03"]
[TimeControl "180+2"]
[Date "2023.04.25"]
[WhiteClock "0:00:39"]
[BlackClock "0:01:13"]

1. Nc3 {[%clk 0:02:56]}  Nf6 {[%clk 0:02:58]} 2. d4 {[%clk 0:02:54]}  d5 {[%clk 0:02:58]} 3. Bf4 {[%clk 0:02:47]}  g6 {[%clk 0:02:54]} 4. Nb5 {[%clk 0:02:40]}  Na6 {[%clk 0:02:54]} 5. e3 {[%clk 0:02:40]}  Bg7 {[%clk 0:02:54]} 6. Nf3 {[%clk 0:02:41]}  O-O {[%clk 0:02:54]} 7. h3 {[%clk 0:02:38]}  Ne4 {[%clk 0:02:51]} 8. Nd2 {[%clk 0:02:33]}  c6 {[%clk 0:02:49]} 9. Nxe4 {[%clk 0:02:31]}  dxe4 {[%clk 0:02:47]} 10. Nc3 {[%clk 0:02:31]}  f5 {[%clk 0:02:46]} 11. Bxa6 {[%clk 0:02:01]}  bxa6 {[%clk 0:02:47]} 12. O-O {[%clk 0:02:01]}  Kh8 {[%clk 0:02:46]} 13. Na4 {[%clk 0:02:02]}  e6 {[%clk 0:02:40]} 14. Nc5 {[%clk 0:01:59]}  Rf7 {[%clk 0:02:41]} 15. c3 {[%clk 0:01:54]}  h6 {[%clk 0:02:34]} 16. Qb3 {[%clk 0:01:48]}  Re7 {[%clk 0:02:26]} 17. Rad1 {[%clk 0:01:38]}  Qb6 {[%clk 0:02:25]} 18. Bd6 {[%clk 0:01:27]}  Re8 {[%clk 0:02:21]} 19. Rd2 {[%clk 0:01:21]}  Rd8 {[%clk 0:02:16]} 20. Qxb6 {[%clk 0:01:13]}  axb6 {[%clk 0:02:15]} 21. Bc7 {[%clk 0:01:14]}  Re8 {[%clk 0:01:55]} 22. Bxb6 {[%clk 0:01:14]}  e5 {[%clk 0:01:54]} 23. Bc7 {[%clk 0:01:11]}  Kg8 {[%clk 0:01:54]} 24. Bxe5 {[%clk 0:01:10]}  Bxe5 {[%clk 0:01:52]} 25. dxe5 {[%clk 0:01:11]}  Rxe5 {[%clk 0:01:53]} 26. Rd8+ {[%clk 0:01:11]}  Kf7 {[%clk 0:01:53]} 27. b4 {[%clk 0:01:11]}  a5 {[%clk 0:01:48]} 28. Rfd1 {[%clk 0:01:05]}  axb4 {[%clk 0:01:46]} 29. cxb4 {[%clk 0:01:05]}  Rd5 {[%clk 0:01:45]} 30. R1xd5 {[%clk 0:01:03]}  cxd5 {[%clk 0:01:46]} 31. a4 {[%clk 0:00:53]}  Rb8 {[%clk 0:01:43]} 32. b5 {[%clk 0:00:51]}  Ke7 {[%clk 0:01:39]} 33. Rxd5 {[%clk 0:00:51]}  h5 {[%clk 0:01:38]} 34. g3 {[%clk 0:00:44]}  g5 {[%clk 0:01:37]} 35. h4 {[%clk 0:00:44]}  gxh4 {[%clk 0:01:36]} 36. gxh4 {[%clk 0:00:45]}  Ra8 {[%clk 0:01:31]} 37. Kh2 {[%clk 0:00:43]}  Ra5 {[%clk 0:01:24]} 38. Kg3 {[%clk 0:00:43]}  Be6 {[%clk 0:01:14]} 39. Re5 {[%clk 0:00:39]}  Kd6 {[%clk 0:01:15]} 40. Rxe6+ {[%clk 0:00:39]}  Kxc5 {[%clk 0:01:15]} 41. Ra6 {[%clk 0:00:40]}  Rxa6 {[%clk 0:01:12]} 42. bxa6 {[%clk 0:00:40]}  Kb6 {[%clk 0:01:13]} 43. Kf4 {[%clk 0:00:39]} 1-0


[Site "https://www.chess.com"]

[Event "Titled Tuesday Blitz April 25 Early 2023"]
[White "Skliarov, Viktor"]
[Black "Manon-og, Ramon Jr."]
[WhiteFideId "14106736"]
[BlackFideId "5200776"]
[WhiteElo "2317"]
[BlackElo "2340"]
[Result "1-0"]
[Round "03"]
[TimeControl "180+2"]
[Date "2023.04.25"]
[WhiteClock "0:00:13"]
[BlackClock "0:00:57"]

1. e4 {[%clk 0:03:00]}  c5 {[%clk 0:03:00]} 2. Nf3 {[%clk 0:02:58]}  d6 {[%clk 0:03:00]} 3. d4 {[%clk 0:02:58]}  cxd4 {[%clk 0:03:01]} 4. Qxd4 {[%clk 0:02:59]}  Nc6 {[%clk 0:03:01]} 5. Bb5 {[%clk 0:02:59]}  Bd7 {[%clk 0:03:01]} 6. Bxc6 {[%clk 0:02:59]}  Bxc6 {[%clk 0:03:02]} 7. Nc3 {[%clk 0:03:00]}  a6 {[%clk 0:03:02]} 8. O-O {[%clk 0:02:57]}  e5 {[%clk 0:03:02]} 9. Qd3 {[%clk 0:02:56]}  h6 {[%clk 0:03:00]} 10. Nd2 {[%clk 0:02:54]}  b5 {[%clk 0:02:53]} 11. a4 {[%clk 0:02:52]}  Nf6 {[%clk 0:02:49]} 12. axb5 {[%clk 0:02:49]}  axb5 {[%clk 0:02:50]} 13. Rxa8 {[%clk 0:02:49]}  Qxa8 {[%clk 0:02:50]} 14. Nxb5 {[%clk 0:02:50]}  Qb8 {[%clk 0:02:44]} 15. c4 {[%clk 0:02:41]}  Be7 {[%clk 0:02:38]} 16. Nc3 {[%clk 0:02:20]}  O-O {[%clk 0:02:38]} 17. b3 {[%clk 0:02:20]}  Qb4 {[%clk 0:02:30]} 18. Bb2 {[%clk 0:02:13]}  Ra8 {[%clk 0:02:21]} 19. Ra1 {[%clk 0:02:09]}  Rxa1+ {[%clk 0:02:21]} 20. Bxa1 {[%clk 0:02:10]}  Qa3 {[%clk 0:02:22]} 21. Qb1 {[%clk 0:02:09]}  Bd8 {[%clk 0:02:17]} 22. Bb2 {[%clk 0:01:34]}  Qc5 {[%clk 0:02:01]} 23. h3 {[%clk 0:01:07]}  Bb6 {[%clk 0:02:00]} 24. Qe1 {[%clk 0:01:06]}  Nh5 {[%clk 0:01:53]} 25. Nf1 {[%clk 0:00:44]}  Nf4 {[%clk 0:01:50]} 26. Ne3 {[%clk 0:00:44]}  Qb4 {[%clk 0:01:37]} 27. Qd1 {[%clk 0:00:38]}  Bd4 {[%clk 0:01:34]} 28. Ncd5 {[%clk 0:00:15]}  Bxd5 {[%clk 0:01:26]} 29. Nxd5 {[%clk 0:00:12]}  Nxd5 {[%clk 0:01:07]} 30. Bxd4 {[%clk 0:00:12]}  exd4 {[%clk 0:01:05]} 31. exd5 {[%clk 0:00:13]}  Qxc4 {[%clk 0:00:57]} 32. bxc4 {[%clk 0:00:13]} 1-0


[Site "https://www.chess.com"]

[Event "Titled Tuesday Blitz April 25 Early 2023"]
[White "Golichenko, Ilija"]
[Black "Rodrigues, Adriano"]
[WhiteFideId "14117223"]
[BlackFideId "2100908"]
[WhiteElo "2339"]
[BlackElo "2339"]
[Result "1-0"]
[Round "03"]
[TimeControl "180+2"]
[Date "2023.04.25"]
[WhiteClock "0:01:45"]
[BlackClock "0:00:03"]

1. d4 {[%clk 0:03:00]}  Nf6 {[%clk 0:01:09]} 2. c4 {[%clk 0:02:58]}  g6 {[%clk 0:01:09]} 3. Nc3 {[%clk 0:02:53]}  c5 {[%clk 0:01:08]} 4. d5 {[%clk 0:02:47]}  Bg7 {[%clk 0:01:08]} 5. e4 {[%clk 0:02:47]}  d6 {[%clk 0:01:07]} 6. Be2 {[%clk 0:02:47]}  O-O {[%clk 0:01:07]} 7. Be3 {[%clk 0:02:47]}  e6 {[%clk 0:01:07]} 8. h3 {[%clk 0:02:46]}  exd5 {[%clk 0:01:07]} 9. exd5 {[%clk 0:02:47]}  Re8 {[%clk 0:01:05]} 10. Nf3 {[%clk 0:02:47]}  Bf5 {[%clk 0:00:55]} 11. Bd3 {[%clk 0:02:45]}  Ne4 {[%clk 0:00:49]} 12. Nxe4 {[%clk 0:02:32]}  Bxe4 {[%clk 0:00:49]} 13. O-O {[%clk 0:02:28]}  Nd7 {[%clk 0:00:37]} 14. Bxe4 {[%clk 0:02:25]}  Rxe4 {[%clk 0:00:37]} 15. Qd3 {[%clk 0:02:26]}  Qe7 {[%clk 0:00:20]} 16. Bg5 {[%clk 0:02:20]}  f6 {[%clk 0:00:15]} 17. Rae1 {[%clk 0:02:20]}  Re8 {[%clk 0:00:12]} 18. Bd2 {[%clk 0:02:20]}  f5 {[%clk 0:00:11]} 19. Bc3 {[%clk 0:02:17]}  Bxc3 {[%clk 0:00:10]} 20. Qxc3 {[%clk 0:02:17]}  Nf6 {[%clk 0:00:09]} 21. Rxe4 {[%clk 0:02:16]}  Nxe4 {[%clk 0:00:09]} 22. Qa3 {[%clk 0:02:14]}  Qg7 {[%clk 0:00:10]} 23. Re1 {[%clk 0:02:11]}  a6 {[%clk 0:00:10]} 24. Ng5 {[%clk 0:02:08]}  Qe7 {[%clk 0:00:09]} 25. Ne6 {[%clk 0:02:04]}  Qh4 {[%clk 0:00:06]} 26. Qe3 {[%clk 0:02:01]}  Qf6 {[%clk 0:00:05]} 27. f3 {[%clk 0:02:00]}  Ng5 {[%clk 0:00:03]} 28. b3 {[%clk 0:01:54]}  Nxe6 {[%clk 0:00:03]} 29. dxe6 {[%clk 0:01:54]}  Qd4 {[%clk 0:00:03]} 30. Qxd4 {[%clk 0:01:53]}  cxd4 {[%clk 0:00:03]} 31. Kf2 {[%clk 0:01:53]}  Kg7 {[%clk 0:00:03]} 32. e7 {[%clk 0:01:46]}  Kf6 {[%clk 0:00:04]} 33. f4 {[%clk 0:01:46]}  Rxe7 {[%clk 0:00:04]} 34. Rxe7 {[%clk 0:01:46]}  Kxe7 {[%clk 0:00:04]} 35. Ke2 {[%clk 0:01:47]}  d5 {[%clk 0:00:04]} 36. c5 {[%clk 0:01:46]}  Kd7 {[%clk 0:00:04]} 37. Kd3 {[%clk 0:01:46]}  Kc6 {[%clk 0:00:04]} 38. Kxd4 {[%clk 0:01:47]}  h6 {[%clk 0:00:04]} 39. h4 {[%clk 0:01:45]}  a5 {[%clk 0:00:03]} 40. a3 {[%clk 0:01:45]} 1-0


[Site "https://www.chess.com"]